bitfinex-derivatives/quotes_BTCF0:USTF0_20250509
["timestamp","ask_amount","ask_price","bid_price","bid_amount"]
[1746788764685,0.74627719,103180.0,103170.0,0.69372529]
[1746788764686,0.626325,103180.0,103170.0,0.69372529]
[1746788764984,0.629325,103180.0,103170.0,0.69372529]
[1746788765485,0.627325,103180.0,103170.0,0.66082529]
[1746788765685,0.628325,103180.0,103170.0,0.66082529]
[1746788766490,0.07166,103180.0,103170.0,1.36157748]
[1746788766690,0.265525,103180.0,103170.0,1.39227748]
[1746788766990,0.07166,103180.0,103170.0,1.32227748]
[1746788767186,0.07166,103180.0,103170.0,1.48227748]
[1746788767490,0.265525,103180.0,103170.0,1.48227748]
[1746788767694,0.265525,103180.0,103170.0,1.36232529]
[1746788768185,0.265525,103180.0,103170.0,1.20232529]
[1746788769194,0.264525,103180.0,103170.0,1.20332529]
[1746788769388,0.263525,103180.0,103170.0,1.20332529]
[1746788769589,0.06966,103180.0,103170.0,1.20432529]
[1746788769883,0.00726,103180.0,103170.0,1.32427748]
[1746788770093,0.00726,103180.0,103170.0,1.48427748]
[1746788770289,0.03906,103180.0,103170.0,1.36432529]
[1746788770489,0.03906,103180.0,103170.0,1.48427748]
[1746788771494,0.232925,103180.0,103170.0,1.12347748]
[1746788771693,0.232925,103180.0,103170.0,1.48427748]
[1746788771888,0.232925,103180.0,103170.0,1.12432529]
[1746788772087,0.263225,103180.0,103170.0,0.60352529]
[1746788772393,0.232925,103180.0,103170.0,1.21432529]
[1746788772996,0.03906,103180.0,103170.0,1.33427748]
[1746788773189,0.00726,103180.0,103170.0,1.49427748]
[1746788773895,0.00726,103180.0,103170.0,1.37432529]
[1746788774097,0.7000151,103200.0,103170.0,1.52034587]
[1746788774300,0.032,103200.0,103190.0,0.31379849]
[1746788774498,0.2258275,103200.0,103190.0,0.86379849]
[1746788774695,0.70657969,103200.0,103190.0,0.5663463]
[1746788774996,0.73687969,103200.0,103190.0,0.663269]
[1746788775200,0.6169275,103200.0,103190.0,0.663269]
[1746788775494,0.6169275,103200.0,103190.0,0.693269]
[1746788775700,0.6189275,103200.0,103190.0,0.693269]
[1746788776202,0.6219275,103200.0,103190.0,0.693269]
[1746788776384,0.73987969,103200.0,103190.0,0.693269]
[1746788776589,0.74187969,103200.0,103190.0,0.2769227]
[1746788776796,0.74187969,103200.0,103190.0,0.320769]
[1746788776996,0.74187969,103200.0,103190.0,0.290769]
[1746788777194,0.74187969,103200.0,103190.0,0.0969227]
[1746788777497,0.74187969,103200.0,103190.0,0.290769]
[1746788778095,0.74187969,103200.0,103190.0,0.0969227]
[1746788778292,0.193865,103180.0,103170.0,0.808]
[1746788778496,0.67461719,103180.0,103170.0,0.8537838]
[1746788778800,0.73811719,103180.0,103170.0,0.18]
[1746788779003,0.73811719,103180.0,103170.0,0.3738838]
[1746788779195,0.73811719,103180.0,103170.0,0.47078771]
[1746788779392,0.73811719,103180.0,103170.0,0.09790391]
[1746788779596,0.73811719,103180.0,103170.0,0.001]
[1746788780090,0.89811719,103180.0,103170.0,0.001]
[1746788780297,0.89811719,103180.0,103170.0,0.002]
[1746788780994,0.89811719,103180.0,103170.0,0.1958838]
[1746788781395,0.778165,103180.0,103170.0,0.5428065]
[1746788781596,0.778165,103180.0,103170.0,0.6061065]
[1746788781897,0.780165,103180.0,103170.0,0.6051065]
[1746788782296,0.620165,103180.0,103170.0,0.6041065]
[1746788782494,0.623165,103180.0,103170.0,0.6041065]
[1746788783007,0.74011719,103180.0,103170.0,0.6041065]
[1746788783302,0.74011719,103180.0,103170.0,0.4708065]
[1746788783500,0.620165,103180.0,103170.0,0.4708065]
[1746788783692,0.74011719,103180.0,103170.0,0.2908065]
[1746788785209,0.620165,103180.0,103170.0,0.2908065]
[1746788785599,0.74011719,103180.0,103170.0,0.3224065]
[1746788786303,0.74011719,103180.0,103170.0,0.0969227]
[1746788786501,0.1938838,103170.0,103160.0,0.0643]
[1746788786808,0.73903599,103170.0,103160.0,0.5651253]
[1746788787007,0.6190838,103170.0,103160.0,0.5651253]
[1746788787910,0.6190838,103170.0,103160.0,0.5661253]
[1746788788510,0.6190838,103170.0,103160.0,0.5671253]
[1746788789502,0.6190838,103170.0,103160.0,0.63707749]
[1746788789698,0.6190838,103170.0,103160.0,0.8071253]
[1746788790408,0.2582838,103170.0,103160.0,0.8071253]
[1746788791005,0.2582838,103170.0,103160.0,1.1679253]
[1746788791204,0.2262838,103170.0,103160.0,0.9671253]
[1746788791407,0.0324,103170.0,103160.0,1.54480948]
[1746788791715,0.3465143,103190.0,103180.0,0.193865]
[1746788791914,0.3775143,103190.0,103180.0,0.493865]
[1746788792111,0.3775143,103190.0,103180.0,0.524865]
[1746788792316,0.85826649,103190.0,103180.0,0.62179709]
[1746788792701,0.49746649,103190.0,103180.0,0.62179709]
[1746788793008,0.3290492,103190.0,103180.0,0.62179709]
[1746788793214,0.3625492,103190.0,103180.0,0.65189709]
[1746788794417,0.04076,103190.0,103180.0,1.49456928]
[1746788794912,0.3627376,103220.0,103190.0,0.4846157]
[1746788795101,0.4259376,103220.0,103210.0,0.31376089]
[1746788795309,0.3932376,103220.0,103210.0,0.96044886]
[1746788795604,0.3627376,103220.0,103210.0,1.12074339]
[1746788795808,0.3627376,103220.0,103210.0,0.75074339]
[1746788796113,0.0019376,103220.0,103210.0,1.62127915]
[1746788796320,0.0079376,103220.0,103210.0,1.62227915]
[1746788797812,0.0129376,103220.0,103210.0,1.62227915]
[1746788798413,0.0049376,103220.0,103210.0,1.62127915]
[1746788799011,0.0049376,103220.0,103210.0,2.03717915]
[1746788799206,0.004,103230.0,103220.0,0.1937899]
[1746788799407,0.004,103230.0,103220.0,1.67374209]
[1746788799910,0.004,103230.0,103220.0,1.77062723]
[1746788800108,0.004,103230.0,103220.0,1.93062723]
[1746788801116,0.007,103230.0,103220.0,3.43062723]
[1746788801818,0.01,103230.0,103220.0,3.43681305]
[1746788802012,0.01,103230.0,103220.0,3.43062723]
[1746788802212,0.01,103230.0,103220.0,3.43681292]
[1746788802919,0.00726,103240.0,103230.0,0.1937711]
[1746788803121,0.00726,103240.0,103230.0,1.33877548]
[1746788803321,0.00726,103240.0,103230.0,1.21882329]
[1746788803626,0.00726,103240.0,103230.0,1.31568966]
[1746788804114,0.01226,103240.0,103230.0,1.47568966]
[1746788804708,0.2050124,103240.0,103230.0,1.35573747]
[1746788805015,0.2351124,103240.0,103230.0,1.21953747]
[1746788805319,0.2351124,103240.0,103230.0,1.18244966]
[1746788805320,0.06806,103240.0,103230.0,1.18244966]
[1746788805514,0.06806,103240.0,103230.0,1.45244966]
[1746788805715,0.00726,103240.0,103230.0,1.57240185]
[1746788805921,0.00726,103240.0,103230.0,1.57859711]
[1746788806118,0.00726,103240.0,103230.0,1.73859711]
[1746788806320,0.00726,103240.0,103230.0,1.61864492]
[1746788806626,0.00726,103240.0,103230.0,2.03454492]
[1746788807423,0.03083,103250.0,103230.0,2.05759401]
[1746788807731,0.03083,103250.0,103240.0,0.76850459]
[1746788808022,0.00073,103250.0,103240.0,1.25469985]
[1746788808225,0.00073,103250.0,103240.0,1.51469985]
[1746788808425,0.00073,103250.0,103240.0,1.70842222]
[1746788808622,0.00073,103250.0,103240.0,1.60842222]
[1746788808822,0.00073,103250.0,103240.0,3.10842222]
[1746788809022,0.00073,103250.0,103240.0,3.10942222]
[1746788809223,0.00073,103250.0,103240.0,3.01256622]
[1746788809820,0.03343,103250.0,103240.0,3.10765096]
[1746788810020,0.03343,103250.0,103240.0,3.00637096]
[1746788810228,0.03343,103250.0,103240.0,2.94761096]
[1746788810729,0.03343,103250.0,103240.0,2.82865877]
[1746788810922,0.03343,103250.0,103240.0,2.94861096]
[1746788811122,0.03343,103250.0,103240.0,3.10861096]
[1746788811423,0.03343,103250.0,103240.0,3.10873096]
[1746788811824,0.06513,103250.0,103240.0,2.98877877]
[1746788812024,0.06513,103250.0,103240.0,2.98869877]
[1746788812224,0.06513,103250.0,103240.0,2.82869877]
[1746788812829,0.06513,103250.0,103240.0,2.94865096]
[1746788814227,0.2588636,103250.0,103240.0,2.36661877]
[1746788814423,0.06513,103250.0,103240.0,2.46733877]
[1746788814619,0.06513,103250.0,103240.0,2.58729096]
[1746788814821,0.06513,103250.0,103240.0,2.94809096]
[1746788815026,0.03343,103250.0,103240.0,2.94809096]
[1746788815221,0.03343,103250.0,103240.0,3.10809096]
[1746788815932,0.03343,103250.0,103240.0,3.11430616]
[1746788816434,0.03343,103250.0,103240.0,2.99435397]
[1746788816634,0.03343,103250.0,103240.0,3.11430616]
[1746788818631,0.03343,103250.0,103240.0,3.53020616]
[1746788818939,0.01126,103260.0,103250.0,0.1937336]
[1746788819235,0.01126,103260.0,103250.0,1.95820099]
[1746788819430,0.01126,103260.0,103250.0,1.94883379]
[1746788819737,0.04286,103260.0,103250.0,2.15214042]
[1746788819938,0.04286,103260.0,103250.0,2.05214042]
[1746788820535,0.04286,103260.0,103250.0,1.95529242]
[1746788820733,0.04286,103260.0,103250.0,2.05529242]
[1746788820937,0.031,103270.0,103260.0,0.1937148]
[1746788821126,0.004,103290.0,103260.0,1.7978634]
[1746788821327,0.004,103290.0,103270.0,0.62321189]
[1746788821328,0.031,103280.0,103270.0,0.62321189]
[1746788821532,0.031,103280.0,103270.0,1.57885361]
[1746788821738,0.0638,103280.0,103270.0,1.57885361]
[1746788822331,0.01,103290.0,103280.0,0.1936773]
[1746788822537,0.041,103290.0,103280.0,1.35620761]
[1746788822925,0.035,103290.0,103280.0,2.95303646]
[1746788823128,0.035,103290.0,103280.0,3.11303646]
[1746788824225,0.04,103290.0,103280.0,3.11303646]
[1746788824436,0.046,103290.0,103280.0,3.11303646]
[1746788825938,0.046,103290.0,103280.0,3.11553001]
[1746788826139,0.046,103290.0,103280.0,3.12225523]
[1746788826339,0.046,103290.0,103280.0,3.22265523]
[1746788826641,0.2729586,103290.0,103280.0,2.97120304]
[1746788826938,0.39291079,103290.0,103280.0,1.12177452]
[1746788827136,0.55291079,103290.0,103280.0,0.96177452]
[1746788827336,0.4329586,103290.0,103280.0,1.15545182]
[1746788827938,0.4329586,103290.0,103280.0,1.1487266]
[1746788829934,0.4329586,103290.0,103280.0,1.00130615]
[1746788830438,0.4329586,103290.0,103280.0,0.64050615]
[1746788830741,0.4329586,103290.0,103280.0,1.00130615]
[1746788833140,0.4329586,103290.0,103280.0,0.64050615]
[1746788834546,0.4329586,103290.0,103280.0,1.00130615]
[1746788835147,0.2393,103290.0,103280.0,1.12125834]
[1746788835343,0.4329586,103290.0,103280.0,1.15325834]
[1746788835545,0.2393,103290.0,103280.0,1.32485834]
[1746788836237,0.0793,103290.0,103280.0,1.32485834]
[1746788836433,0.2729586,103290.0,103280.0,1.11485834]
[1746788836648,0.2729586,103290.0,103280.0,0.63410615]
[1746788836947,0.0793,103290.0,103280.0,1.11485834]
[1746788837343,0.046,103290.0,103280.0,1.01485834]
[1746788837542,0.046,103290.0,103280.0,1.38795834]
[1746788838044,0.015,103290.0,103280.0,1.50791053]
[1746788838242,0.015,103290.0,103280.0,1.66791053]
[1746788838442,0.015,103290.0,103280.0,3.16791053]
[1746788838943,0.01,103290.0,103280.0,3.16791053]
[1746788839148,0.008,103290.0,103280.0,3.04795834]
[1746788839448,0.0412,103290.0,103280.0,2.92800615]
[1746788839641,0.6603586,103290.0,103280.0,2.8500959]
[1746788839948,0.6603586,103290.0,103280.0,0.8300959]
[1746788839949,0.78031079,103290.0,103280.0,0.8300959]
[1746788840250,0.78031079,103290.0,103280.0,1.0237732]
[1746788840448,0.94031079,103290.0,103280.0,0.6700959]
[1746788840640,0.94031079,103290.0,103280.0,1.0337732]
[1746788841344,0.2659,103290.0,103280.0,1.0437732]
[1746788841545,0.2659,103290.0,103280.0,1.90452539]
[1746788841748,0.2659,103290.0,103280.0,1.99862539]
[1746788841939,0.4595586,103290.0,103280.0,1.5985732]
[1746788842144,0.2659,103290.0,103280.0,1.5345732]
[1746788842350,0.2659,103290.0,103280.0,1.65452539]
[1746788842647,0.2659,103290.0,103280.0,1.71752539]
[1746788842843,0.4595586,103290.0,103280.0,1.5975732]
[1746788843039,0.4595586,103290.0,103280.0,1.5345732]
[1746788843239,0.57951079,103290.0,103280.0,1.3408959]
[1746788843439,0.57951079,103290.0,103280.0,1.3945732]
[1746788843640,0.57951079,103290.0,103280.0,1.2008959]
[1746788843839,0.69946298,103290.0,103280.0,1.10406705]
[1746788844244,0.57951079,103290.0,103280.0,1.10406705]
[1746788844546,0.55609365,103290.0,103280.0,1.10406705]
[1746788844747,0.55609365,103290.0,103280.0,1.29774435]
[1746788844949,0.55609365,103290.0,103280.0,1.10406705]
[1746788845150,0.55609365,103290.0,103280.0,1.29774435]
[1746788845651,0.55609365,103290.0,103280.0,1.12774435]
[1746788845946,1.13366584,103290.0,103280.0,0.57326705]
[1746788846141,0.1936773,103280.0,103270.0,0.2101236]
[1746788846341,0.70502949,103280.0,103270.0,0.4038197]
[1746788847145,0.86502949,103280.0,103270.0,0.4038197]
[1746788847547,0.7450773,103280.0,103270.0,0.50064855]
[1746788847747,0.7782773,103280.0,103270.0,0.50064855]
[1746788847947,0.7782773,103280.0,103270.0,0.50164855]
[1746788848449,0.7782773,103280.0,103270.0,0.51164855]
[1746788848751,0.89822949,103280.0,103270.0,0.51164855]
[1746788849141,0.7782773,103280.0,103270.0,0.51164855]
[1746788849342,0.89822949,103280.0,103270.0,0.51164855]
[1746788849852,0.89822949,103280.0,103270.0,0.12208627]
[1746788850037,0.89822949,103280.0,103270.0,0.31578237]
[1746788850751,0.89822949,103280.0,103270.0,0.12208627]
[1746788850946,0.89822949,103280.0,103270.0,0.31578237]
[1746788851451,0.89822949,103280.0,103270.0,0.12208627]
[1746788851846,0.89822949,103280.0,103270.0,0.31578237]
[1746788853150,0.89822949,103280.0,103270.0,0.12208627]
[1746788853548,0.89822949,103280.0,103270.0,0.02525742]
[1746788854243,0.89822949,103280.0,103270.0,0.21895352]
[1746788854844,0.7782773,103280.0,103270.0,0.21895352]
[1746788855266,0.7782773,103280.0,103270.0,0.49698237]
[1746788855447,0.7782773,103280.0,103270.0,0.52798237]
[1746788856151,0.6182773,103280.0,103270.0,0.52798237]
[1746788859150,0.2574773,103280.0,103270.0,0.97878237]
[1746788859755,0.2574773,103280.0,103270.0,0.61798237]
[1746788861156,0.6182773,103280.0,103270.0,0.61798237]
[1746788861955,0.5876773,103280.0,103270.0,0.60798237]
[1746788862153,0.2009186,103290.0,103280.0,0.1936773]
[1746788862351,0.2339186,103290.0,103280.0,0.9405773]
[1746788862763,0.2339186,103290.0,103280.0,1.03739678]
[1746788863257,0.2683186,103290.0,103280.0,1.03739678]
[1746788863755,0.2693186,103290.0,103280.0,1.03739678]
[1746788864258,0.2693186,103290.0,103280.0,0.67659678]
[1746788865261,0.2693186,103290.0,103280.0,1.03739678]
[1746788866059,0.2693186,103290.0,103280.0,0.67659678]
[1746788867258,0.4293186,103290.0,103280.0,0.67659678]
[1746788867862,0.7901186,103290.0,103280.0,0.67659678]
[1746788869070,0.4293186,103290.0,103280.0,0.67659678]
[1746788870760,0.54927079,103290.0,103280.0,0.67659678]
[1746788871263,0.4293186,103290.0,103280.0,1.03739678]
[1746788871857,0.4293186,103290.0,103280.0,0.67659678]
[1746788872666,0.3969186,103290.0,103280.0,0.67659678]
[1746788872858,0.17026,103290.0,103280.0,1.45717484]
[1746788873262,0.01026,103290.0,103280.0,1.55613484]
[1746788873670,0.2039186,103290.0,103280.0,1.28613484]
[1746788874057,0.01026,103290.0,103280.0,1.54613484]
[1746788875562,0.2039186,103290.0,103280.0,1.54613484]
[1746788875760,0.2362186,103290.0,103280.0,1.42618265]
[1746788876169,0.2362186,103290.0,103280.0,0.82486265]
[1746788876472,0.78137079,103290.0,103280.0,0.82486265]
[1746788876769,0.42057079,103290.0,103280.0,0.82486265]
[1746788877267,0.58057079,103290.0,103280.0,0.82486265]
[1746788877466,0.4606186,103290.0,103280.0,1.18566265]
[1746788878466,0.4606186,103290.0,103280.0,1.08722265]
[1746788878770,0.17026,103290.0,103280.0,1.40717484]
[1746788879171,0.01026,103290.0,103280.0,1.40717484]
[1746788880277,0.01026,103290.0,103280.0,1.56717484]
[1746788880966,0.01026,103290.0,103280.0,1.88394702]
[1746788881172,1e-07,103290.0,103280.0,4.04984702]
[1746788881364,0.1,103300.0,103290.0,0.1936586]
[1746788881674,0.1,103300.0,103290.0,1.84376298]
[1746788881972,0.1,103300.0,103290.0,2.13739446]
[1746788882162,0.1,103300.0,103290.0,2.29739446]
[1746788882773,0.2298023,103320.0,103310.0,0.1936211]
[1746788882970,0.2298023,103320.0,103310.0,0.71157329]
[1746788883167,0.2298023,103320.0,103310.0,0.66121689]
[1746788883365,0.2298023,103320.0,103310.0,0.75802699]
[1746788883870,0.0402,103320.0,103310.0,0.75802699]
[1746788884173,0.2338023,103320.0,103310.0,0.75802699]
[1746788884373,0.2408023,103320.0,103310.0,0.75802699]
[1746788885077,0.0472,103320.0,103310.0,0.94802699]
[1746788885576,0.0472,103320.0,103310.0,1.06797918]
[1746788886076,0.0472,103320.0,103310.0,1.06819724]
[1746788886774,0.2724023,103320.0,103310.0,0.94824505]
[1746788889178,0.4324023,103320.0,103310.0,0.94824505]
[1746788889673,0.4324023,103320.0,103310.0,0.81974505]
[1746788889978,0.55235449,103320.0,103310.0,0.60974505]
[1746788890477,0.7932023,103320.0,103310.0,0.60974505]
[1746788891580,0.7932023,103320.0,103310.0,0.60971889]
[1746788892374,0.91315449,103320.0,103310.0,0.38309779]
[1746788892574,0.91315449,103320.0,103310.0,0.57671889]
[1746788893080,0.4324023,103320.0,103310.0,0.60952907]
[1746788893278,0.2724023,103320.0,103310.0,0.6340312]
[1746788893483,0.2724023,103320.0,103310.0,0.76028806]
[1746788893878,0.0788,103320.0,103310.0,0.66028806]
[1746788894075,0.0472,103320.0,103310.0,1.22028806]
[1746788895085,0.0472,103320.0,103310.0,1.06028806]
[1746788895388,0.2408023,103320.0,103310.0,0.66028806]
[1746788895588,0.2716023,103320.0,103310.0,0.75028806]
[1746788895777,0.2716023,103320.0,103310.0,0.63033587]
[1746788896587,0.2716023,103320.0,103310.0,0.66369587]
[1746788896784,0.2716023,103320.0,103310.0,0.69409587]
[1746788896982,0.2716023,103320.0,103310.0,0.69412286]
[1746788897285,0.4316023,103320.0,103310.0,0.72422286]
[1746788898283,0.2716023,103320.0,103310.0,0.84417505]
[1746788898488,0.2716023,103320.0,103310.0,0.72422286]
[1746788899090,0.4316023,103320.0,103310.0,0.72422286]
[1746788899285,0.91235449,103320.0,103310.0,0.43364176]
[1746788899488,0.91235449,103320.0,103310.0,0.46676286]
[1746788901788,1.03230668,103320.0,103310.0,0.10314176]
[1746788901994,0.1936398,103300.0,103290.0,0.435682]
[1746788902194,0.67439199,103300.0,103290.0,0.66189962]
[1746788902395,0.6165398,103300.0,103290.0,0.75869098]
[1746788902596,0.6165398,103300.0,103290.0,0.78999098]
[1746788903000,0.6195398,103300.0,103290.0,0.78999098]
[1746788903191,0.7795398,103300.0,103290.0,0.78999098]
[1746788903494,0.7825398,103300.0,103290.0,0.78999098]
[1746788903792,0.7825398,103300.0,103290.0,0.82259098]
[1746788903994,0.4217398,103300.0,103290.0,0.82259098]
[1746788904592,0.4217398,103300.0,103290.0,0.77417698]
[1746788904795,0.4217398,103300.0,103290.0,0.67737698]
[1746788905294,0.7825398,103300.0,103290.0,0.32300898]
[1746788905596,0.90249199,103300.0,103290.0,0.51668313]
[1746788906096,0.7825398,103300.0,103290.0,0.51668313]
[1746788906797,0.90249199,103300.0,103290.0,0.32321154]
[1746788907297,0.90249199,103300.0,103290.0,0.51687014]
[1746788907685,0.90249199,103300.0,103290.0,0.32321154]
[1746788907889,0.90249199,103300.0,103290.0,0.51687014]
[1746788908188,0.90249199,103300.0,103290.0,0.17321154]
[1746788908502,0.1936773,103280.0,103270.0,0.43357052]
[1746788908794,0.1936773,103280.0,103270.0,0.63768552]
[1746788908996,0.73782949,103280.0,103270.0,0.38106752]
[1746788909187,0.89782949,103280.0,103270.0,0.24106752]
[1746788909589,0.89782949,103280.0,103270.0,0.43476362]
[1746788909997,0.89782949,103280.0,103270.0,0.24106752]
[1746788910197,0.89782949,103280.0,103270.0,0.43576362]
[1746788911000,0.89782949,103280.0,103270.0,0.24206752]
[1746788911295,0.89782949,103280.0,103270.0,2e-08]
[1746788911996,0.1936961,103270.0,103260.0,0.00145249]
[1746788912196,0.6510961,103270.0,103260.0,0.27516729]
[1746788912393,0.2902961,103270.0,103260.0,0.34766729]
[1746788912693,0.2902961,103270.0,103260.0,0.44449614]
[1746788912996,0.2902961,103270.0,103260.0,0.80529614]
[1746788913189,0.6069099,103280.0,103270.0,0.1936961]
[1746788913386,0.6354099,103280.0,103270.0,0.62754829]
[1746788913594,0.6681099,103280.0,103270.0,0.5075961]
[1746788913795,0.79006209,103280.0,103270.0,0.60442495]
[1746788913990,0.79006209,103280.0,103270.0,0.57302495]
[1746788913991,0.82246209,103280.0,103270.0,0.57302495]
[1746788914191,0.98246209,103280.0,103270.0,0.57302495]
[1746788914591,0.97946209,103280.0,103270.0,0.57302495]
[1746788914799,0.8595099,103280.0,103270.0,0.57302495]
[1746788916302,0.81946209,103280.0,103270.0,0.31682885]
[1746788916602,0.6995099,103280.0,103270.0,0.51052495]
[1746788916894,0.81946209,103280.0,103270.0,0.37242495]
[1746788917099,0.97946209,103280.0,103270.0,0.37242495]
[1746788917303,0.97946209,103280.0,103270.0,0.52707742]
[1746788917797,0.97946209,103280.0,103270.0,0.55927742]
[1746788918099,0.81946209,103280.0,103270.0,0.55927742]
[1746788918799,0.81946209,103280.0,103270.0,0.40927742]
[1746788918998,0.81946209,103280.0,103270.0,0.16148132]
[1746788919202,0.81946209,103280.0,103270.0,0.12148132]
[1746788920196,0.97946209,103280.0,103270.0,0.12148132]
[1746788921799,0.97946209,103280.0,103270.0,0.01]
[1746788921997,0.1936961,103270.0,103260.0,0.00145249]
[1746788922201,0.89514829,103270.0,103260.0,0.09145249]
[1746788922501,0.89514829,103270.0,103260.0,0.18828134]
[1746788923100,0.89514829,103270.0,103260.0,0.18682885]
[1746788923296,0.89514829,103270.0,103260.0,0.09]
[1746788924596,0.1937336,103250.0,103240.0,0.2259524]
[1746788924802,0.67448579,103250.0,103240.0,0.50230012]
[1746788925004,0.74624579,103250.0,103240.0,0.59913835]
[1746788925203,0.4254936,103250.0,103240.0,0.63153835]
[1746788925507,0.3609936,103250.0,103240.0,0.75149054]
[1746788925704,0.3609936,103250.0,103240.0,0.63153835]
[1746788926006,0.3609936,103250.0,103240.0,0.63353835]
[1746788926198,0.2009936,103250.0,103240.0,0.63353835]
[1746788926805,0.00726,103250.0,103240.0,1.41429054]
[1746788927008,0.00726,103250.0,103240.0,1.41629054]
[1746788927204,0.2009936,103250.0,103240.0,1.45633835]
[1746788927511,0.2009936,103250.0,103240.0,1.57629054]
[1746788927806,0.2009936,103250.0,103240.0,1.59083338]
[1746788928309,0.2009936,103250.0,103240.0,1.43083338]
[1746788928697,0.2009936,103250.0,103240.0,0.95056672]
[1746788929004,0.2009936,103250.0,103240.0,0.68056672]
[1746788929201,0.2313936,103250.0,103240.0,0.68056672]
[1746788929403,0.2313936,103250.0,103240.0,0.66602388]
[1746788930508,0.2313936,103250.0,103240.0,0.66578922]
[1746788930707,0.71214579,103250.0,103240.0,0.47203682]
[1746788930904,0.74374579,103250.0,103240.0,0.66578922]
[1746788931100,0.6237936,103250.0,103240.0,0.66578922]
[1746788931305,0.2629936,103250.0,103240.0,0.66578922]
[1746788932512,0.2629936,103250.0,103240.0,0.68043763]
[1746788932907,0.74374579,103250.0,103240.0,0.77583763]
[1746788933913,0.74374579,103250.0,103240.0,0.77613984]
[1746788934113,0.90374579,103250.0,103240.0,0.68073984]
[1746788934313,0.54294579,103250.0,103240.0,0.68073984]
[1746788934513,0.90374579,103250.0,103240.0,0.68073984]
[1746788935015,0.54294579,103250.0,103240.0,0.68073984]
[1746788935212,0.4229936,103250.0,103240.0,0.68073984]
[1746788935915,0.7837936,103250.0,103240.0,0.68073984]
[1746788936514,0.90374579,103250.0,103240.0,0.31458744]
[1746788937206,0.91334486,103250.0,103240.0,0.31458744]
[1746788937412,0.1937524,103240.0,103230.0,2e-08]
[1746788937614,0.1937711,103230.0,103220.0,0.27987307]
[1746788937819,0.85687548,103230.0,103220.0,0.08422277]
[1746788938007,0.95375148,103230.0,103220.0,0.08422277]
[1746788938317,1.11375148,103230.0,103220.0,0.08422277]
[1746788938711,0.89692329,103230.0,103220.0,0.27801267]
[1746788939618,0.89692329,103230.0,103220.0,0.08522277]
[1746788939813,1.01687548,103230.0,103220.0,0.08522277]
[1746788940019,1.11375148,103230.0,103220.0,0.08522277]
[1746788940408,0.99379929,103230.0,103220.0,0.08622277]
[1746788940607,0.89692329,103230.0,103220.0,0.28001267]
[1746788940816,0.89692329,103230.0,103220.0,0.34301267]
[1746788941316,0.89692329,103230.0,103220.0,0.2587899]
[1746788941521,0.89692329,103230.0,103220.0,0.065]
[1746788941718,0.89692329,103230.0,103220.0,0.2587899]
[1746788942017,0.89692329,103230.0,103220.0,0.002]
[1746788942917,1.01687548,103230.0,103220.0,0.002]
[1746788943121,1.11375148,103230.0,103220.0,0.002]
[1746788944523,1.01687548,103230.0,103220.0,0.002]
[1746788945023,1.11375148,103230.0,103220.0,0.002]
[1746788945334,0.89692329,103230.0,103220.0,0.1957899]
[1746788945629,0.89692329,103230.0,103220.0,0.3857899]
[1746788945926,0.89692329,103230.0,103220.0,0.2543]
[1746788946117,0.89692329,103230.0,103220.0,0.2580899]
[1746788948227,0.7467711,103230.0,103220.0,0.53496565]
[1746788948411,0.3537711,103230.0,103220.0,0.65491784]
[1746788948615,0.3537711,103230.0,103220.0,0.53496565]
[1746788949014,0.16,103230.0,103220.0,0.53496565]
[1746788949226,0.7132511,103240.0,103230.0,0.1937711]
[1746788949424,0.5545677,103240.0,103230.0,0.46434304]
[1746788949620,0.3608,103240.0,103230.0,0.58429523]
[1746788949919,0.3608,103240.0,103230.0,0.9511616]
[1746788950125,0.5545524,103240.0,103230.0,0.83120797]
[1746788950824,0.5545524,103240.0,103230.0,0.84105984]
[1746788951017,0.1937524,103240.0,103230.0,0.84105984]
[1746788951223,0.1937524,103240.0,103230.0,1.19200797]
[1746788951528,0.88867029,103250.0,103240.0,0.1937524]
[1746788951722,0.7687181,103250.0,103240.0,0.3527229]
[1746788952025,0.7687181,103250.0,103240.0,0.35272237]
[1746788952215,0.4079181,103250.0,103240.0,0.44957936]
[1746788952415,0.00726,103250.0,103240.0,0.87033155]
[1746788952616,0.00926,103250.0,103240.0,1.30033155]
[1746788952830,0.00926,103250.0,103240.0,1.30133155]
[1746788953329,0.00726,103250.0,103240.0,1.46133155]
[1746788953521,0.00726,103250.0,103240.0,1.46233155]
[1746788954227,0.00726,103250.0,103240.0,1.34237936]
[1746788954722,0.00726,103250.0,103210.0,0.6801531]
[1746788954723,0.5328191,103240.0,103210.0,0.1956503]
[1746788955021,0.67454209,103220.0,103210.0,0.1956503]
[1746788955219,0.67454209,103220.0,103210.0,0.46745279]
[1746788955414,0.73714209,103220.0,103210.0,0.37205279]
[1746788955619,0.73714209,103220.0,103210.0,0.35640249]
[1746788956226,0.89714209,103220.0,103210.0,0.33640249]
[1746788956426,0.89714209,103220.0,103210.0,0.33940249]
[1746788956630,0.89714209,103220.0,103210.0,0.34240249]
[1746788957127,0.89714209,103220.0,103210.0,0.71616338]
[1746788957128,0.3537899,103220.0,103210.0,0.71616338]
[1746788957335,0.3537899,103220.0,103210.0,1.10846338]
[1746788958028,0.3856899,103220.0,103210.0,0.98851119]
[1746788958333,0.5864899,103220.0,103210.0,0.62771119]
[1746788958629,0.5864899,103220.0,103210.0,0.61276569]
[1746788958827,0.2256899,103220.0,103210.0,0.61276569]
[1746788959424,0.5864899,103220.0,103210.0,0.61276569]
[1746788959624,0.70644209,103220.0,103210.0,0.22745699]
[1746788959826,0.77184209,103220.0,103210.0,0.18207543]
[1746788960127,0.1938087,103210.0,103200.0,3e-08]
[1746788960336,0.1938275,103200.0,103190.0,0.5351928]
[1746788960523,0.74047969,103200.0,103190.0,0.7290391]
[1746788960725,0.37967969,103200.0,103190.0,0.97592424]
[1746788960927,0.74047969,103200.0,103190.0,0.97592424]
[1746788961127,0.90047969,103200.0,103190.0,0.82592424]
[1746788961327,0.7805275,103200.0,103190.0,0.82592424]
[1746788961919,0.4197275,103200.0,103190.0,0.82892424]
[1746788962125,0.6205275,103200.0,103190.0,1.00892424]
[1746788962323,0.6205275,103200.0,103190.0,0.56833144]
[1746788962733,0.6205275,103200.0,103190.0,0.57033144]
[1746788964635,0.2597275,103200.0,103190.0,0.57033144]
[1746788964836,0.2597275,103200.0,103190.0,0.58477725]
[1746788965340,0.6205275,103200.0,103190.0,0.58477725]
[1746788965834,0.2597275,103200.0,103190.0,0.58477725]
[1746788966032,0.6999916,103210.0,103200.0,0.1938275]
[1746788966334,0.7129354,103210.0,103200.0,0.4939275]
[1746788966530,0.7129354,103210.0,103200.0,0.50005117]
[1746788966729,0.7129354,103210.0,103200.0,0.59695508]
[1746788967936,0.7129354,103210.0,103200.0,0.59801046]
[1746788968131,0.8729354,103210.0,103200.0,0.48801046]
[1746788968327,0.99288759,103210.0,103200.0,0.29427758]